[Event "1st Chessable Sunway Formentera 2022"]
[Site "Formentera Punta Prima"]
[Date "2022.05.06"]
[Round "8.11"]
[White "Lever, Erwan"]
[Black "Papadiamandis, Elliot"]
[Result "0-1"]
[ECO "A81"]
[WhiteElo "2209"]
[BlackElo "2373"]
[Annotator "TA"]
[PlyCount "94"]
[EventDate "2022.05.05"]
[EventType "swiss"]
[EventCountry "ESP"]
[SourceTitle "playchess.com"]
[Source "ChessBase"]
[SourceQuality "1"]
[TimeControl "40/5400+30:1800+30"]

{[%evp 13,93,22,25,36,35,42,43,34,58,56,60,64,144,140,126,104,104,89,108,97,109,102,163,157,145,106,161,168,160,83,83,62,88,60,50,0,22,0,10,0,0,0,0,0,0,0,0,0,19,22,31,0,22,0,0,0,16,8,16,0,6,0,0,0,0,-153,-123,-130,-127,-140,-129,-103,-103,-5957,-12822,-6091,-2287,-29996,-29997,-29997,-29998,-29999]} 1. d4 {[%emt 0:00:16]} f5 {[%emt 0:00:17]} 2. Nf3 {[%emt 0:00:57]} Nf6 {[%emt 0:00:51]} 3. g3 {[%emt 0:00:30]} g6 {[%emt 0:00:30]} 4. b3 {[%emt 0:00:30]} Bg7 {[%emt 0:00:30]} 5. Bb2 {[%emt 0:00:19]} e6 {[%emt 0:11:43]} 6. Bg2 {[%emt 0:00:07]} O-O {[%emt 0:03:04]} 7. O-O {[%emt 0:00:06]} d6 {[%emt 0:05:35]} 8. c4 {[%emt 0:00:07] A81: Dutch Defence: 2 g3.} Re8 {[%emt 0:02:47]} 9. Nc3 {[%emt 0:01:56]} Nbd7 {[%emt 0:06:07]} 10. Qc2 {[%emt 0:00:24] White is slightly better.} e5 {[%emt 0:03:20]} 11. dxe5 {[%emt 0:00:20] [#]} dxe5 $146 {[%emt 0:02:58]} ({Predecessor:} 11... Nxe5 12. Rad1 Qe7 13. e3 Nxf3+ 14. Bxf3 Ne4 15. Nd5 Qf7 16. Bxg7 Qxg7 17. Rd4 Ng5 {½-½ (41) Keskisarja,T (2282)-Lehtivaara,R (2164) Finland 2012}) 12. e4 {[%emt 0:10:06]} Nf8 {[%emt 0:15:03]} (12... Nxe4 $14 13. Nxe4 fxe4 14. Qxe4 c6) 13. Rad1 $16 {[%emt 0:05:12]} Qe7 {[%emt 0:02:04]} 14. Rfe1 {[%emt 0:02:42][%cal Of3e5]} c6 {[%emt 0:08:07]} 15. exf5 {[%emt 0:11:37]} Bxf5 {[%emt 0:00:25]} 16. Qc1 {[%emt 0:00:12]} Qc7 {[%emt 0:05:19]} 17. h3 {[%emt 0:16:49] Against Bg4} N8d7 {[%emt 0:06:48]} (17... e4 $16 18. Ng5 Rad8) 18. g4 $18 {[%emt 0:03:27]} Be6 {[%emt 0:00:58]} 19. Ng5 {[%emt 0:02:14]} Kh8 {[%emt 0:02:04]} (19... Rad8 $16 {keeps fighting.}) 20. Nce4 {[%emt 0:06:57]} Nxe4 {[%emt 0:00:40]} 21. Nxe6 {[%emt 0:01:12]} (21. Nxe4 $142 Rad8 22. Bc3) 21... Rxe6 $16 {[%emt 0:00:30]} 22. Bxe4 {[%emt 0:00:10]} Re7 {[%emt 0:03:52]} 23. Qd2 {[%emt 0:03:09]} Rf7 {[%emt 0:00:22]} 24. Kg2 {[%emt 0:04:07]} (24. Bg2 $14) 24... Nf8 {[%emt 0:03:34][%cal Bd7f8,Bf8e6,Be6d4][%mdl 32]} 25. Bc3 {[%emt 0:11:23]} (25. Qd6 {is more complex.} Qa5 26. Bb1 Kg8 27. Re3) 25... Rd7 {[%emt 0:03:40]} 26. Qb2 {[%emt 0:00:42]} Rxd1 {[%emt 0:00:23]} 27. Rxd1 {[%emt 0:00:01]} Ne6 {[%emt 0:00:09]} 28. Qd2 {[%emt 0:03:15]} Rd8 {[%emt 0:00:49] Prevents Qd6.} 29. Qe1 {[%emt 0:00:37]} Rf8 {[%emt 0:02:17]} 30. f3 {[%emt 0:00:15]} Nd4 {[%emt 0:01:13]} 31. Bb4 {[%emt 0:03:45]} Ra8 {[%emt 0:01:51]} 32. Qe3 {[%emt 0:02:44]} Qf7 {[%emt 0:01:30]} 33. h4 {[%emt 0:00:25]} a5 {[%emt 0:00:16]} 34. Bd6 {[%emt 0:02:35]} Qe6 {[%emt 0:01:37]} 35. c5 {[%emt 0:02:08]} a4 {[%emt 0:00:56][%cal Ra4b3]} 36. Bb1 {[%emt 0:02:40][%cal Od1d4] aiming for Rxd4! This bishop pair is nice.} axb3 {[%emt 0:01:25] [#]} 37. Rxd4 $1 {[%emt 0:00:12]} bxa2 {[%emt 0:00:28]} 38. Bxa2 {[%emt 0:00:07]} Rxa2+ {[%emt 0:00:40]} 39. Kh3 $2 {[%emt 0:00:08] [#]} (39. Kg3 $1 $11 Ra8 40. Re4) 39... h5 $1 $17 {[%emt 0:01:46][%cal Oa2a3]} 40. Re4 {[%emt 0:00:00][%cal Rd6e5]} hxg4+ {[%emt 0:00:00]} 41. Rxg4 {[%emt 0:09:51]} b5 {[%emt 0:14:08] ...Ra4 is the strong threat.} 42. Qe4 {[%emt 0:00:27][%csl LRc6,LRg6] [#]} Qf5 $1 {[%emt 0:00:58]} 43. Qxc6 $2 {[%emt 0:01:55][%mdl 8192]} (43. h5 $17) 43... Qb1 $19 {[%emt 0:02:11]} 44. Qe8+ {[%emt 0:03:00]} Kh7 {[%emt 0:00:08] ( -> ...Qh1+)} 45. Rg3 {[%emt 0:00:40]} Qh1+ {[%emt 0:00:11] Black mates.} 46. Kg4 {[%emt 0:00:33]} Ra4+ {[%emt 0:00:06]} 47. Kg5 {[%emt 0:00:00]} Qxh4# {[%emt 0:00:05] Black used his chance.  Weighted Error Value: White=0.47/Black=0.09 (flawless)} 0-1

[Event "1st Chessable Sunway Formentera 2022"]
[Site "Formentera Punta Prima"]
[Date "2022.05.06"]
[Round "8.12"]
[White "Chiku-Ratte, Olivier-Kenta"]
[Black "Mouhamad, Joachim"]
[Result "1-0"]
[ECO "D31"]
[WhiteElo "2358"]
[BlackElo "2290"]
[Annotator "TA"]
[PlyCount "45"]
[EventDate "2022.05.05"]
[EventType "swiss"]
[EventCountry "ESP"]
[SourceTitle "playchess.com"]
[Source "ChessBase"]
[SourceQuality "1"]
[TimeControl "40/5400+30:1800+30"]

{[%evp 9,45,18,21,18,25,20,22,22,35,41,30,24,59,50,90,86,133,126,129,118,131,127,128,129,122,128,167,180,184,189,180,185,240,242,243,233,214,225]} 1. d4 {[%emt 0:00:04]} d5 {[%emt 0:00:20]} 2. c4 {[%emt 0:00:05]} e6 {[%emt 0:00:08]} 3. Nc3 {[%emt 0:00:04]} a6 {[%emt 0:00:09]} 4. cxd5 {[%emt 0:01:02]} exd5 {[%emt 0:00:02]} 5. Bf4 {[%emt 0:00:58]} Nf6 {[%emt 0:00:21]} 6. e3 {[%emt 0:00:21] D31: Queen's Gambit Declined: Semi-Slav without ...Nf6 (+ Marshall Gambit and Noteboom) and Exchange Variation lines without ...Nf6.} Bd6 {[%emt 0:00:17]} 7. Bg5 {[%emt 0:00:06]} c6 {[%emt 0:04:24]} 8. Bd3 {[%emt 0:03:48] The position is equal.} Be6 {[%emt 0:02:27] [#] 8...Nbd7 is a critical line.} 9. f4 $146 {[%emt 0:07:35]} ({Predecessor:} 9. Qc2 Nbd7 10. f4 h6 11. Bh4 g5 12. fxg5 Ng4 13. Nf3 Be7 14. Qd2 hxg5 15. Bg3 {½-½ (38) Vrolijk,L (2480)-Suleymanli,A (2536) Reykjavik 2021}) 9... h6 {[%emt 0:02:47]} 10. Bh4 {[%emt 0:01:03]} g5 {[%emt 0:03:15]} 11. fxg5 {[%emt 0:14:09]} hxg5 {[%emt 0:00:04]} 12. Bxg5 {[%emt 0:00:05]} Rxh2 {[%emt 0:06:37]} ({Black should play} 12... Rg8 13. h4 Nbd7) 13. Rxh2 $16 {[%emt 0:00:57]} Bxh2 {[%emt 0:00:02] [#]} 14. Qf3 $1 {[%emt 0:02:26]} Nbd7 {[%emt 0:00:46]} 15. Nge2 {[%emt 0:02:34][%cal Bg1e2,Be2f4,Bf4e6][%mdl 32] aiming for g3.} Bd6 {[%emt 0:18:42][%cal Bh2d6,Bd6e7,Be7g5][%mdl 32] [#]} 16. O-O-O $1 {[%emt 0:03:02] Strongly threatening Rh1.} Be7 {[%emt 0:06:46]} 17. Rh1 {[%emt 0:03:16][%cal Bd1h1,Bh1h8,Bh8g8,Bg8f8][%mdl 32] Nf4 is the strong threat. White is more active.} Ng8 {[%emt 0:03:12] [#]} 18. Rh8 $1 {[%emt 0:12:36] White is clearly better.} Bxg5 {[%emt 0:01:45]} 19. Rxg8+ {[%emt 0:00:11]} Nf8 {[%emt 0:00:19]} 20. Nf4 {[%emt 0:02:12]} Qf6 {[%emt 0:06:42]} (20... Bxf4 $142 21. exf4 Qd6) 21. Nxe6 $18 {[%emt 0:03:27] Pair of Knights!} Qxf3 {[%emt 0:01:40]} 22. Rxf8+ {[%emt 0:00:18]} ({Worse is} 22. gxf3 Bxe3+ 23. Kc2 fxe6 24. Bg6+ Ke7 $17) 22... Ke7 {[%emt 0:00:29]} 23. gxf3 {[%emt 0:00:04] Black did not feel at home in the position after the opening.  Weighted Error Value: White=0.00 (flawless) /Black=0.14 (very precise)} 1-0

[Event "1st Chessable Sunway Formentera 2022"]
[Site "Formentera Punta Prima"]
[Date "2022.05.06"]
[Round "8.13"]
[White "Bergez, Luc"]
[Black "Grutter, Tim"]
[Result "1-0"]
[ECO "B20"]
[WhiteElo "2331"]
[BlackElo "2241"]
[Annotator "TA"]
[PlyCount "93"]
[EventDate "2022.05.05"]
[EventType "swiss"]
[EventCountry "ESP"]
[SourceTitle "playchess.com"]
[Source "ChessBase"]
[SourceQuality "1"]
[TimeControl "40/5400+30:1800+30"]

{[%evp 9,93,-44,-46,-47,6,9,13,0,4,0,27,14,20,-10,10,0,0,-4,42,44,76,79,91,79,88,85,86,86,102,82,110,91,103,79,138,129,140,120,166,172,178,168,256,243,265,265,378,359,361,359,347,320,498,506,493,491,818,721,687,712,715,654,704,644,748,728,700,689,797,772,986,892,1187,1181,1171,1155,1850,1723,1738,1666,5788,5788,29982,29983,29982,29979]} 1. e4 {[%emt 0:00:04]} c5 {[%emt 0:00:04]} 2. d3 {[%emt 0:00:08]} Nc6 {[%emt 0:00:10]} 3. g3 {[%emt 0:00:09]} Nf6 {[%emt 0:00:06]} 4. Bg2 {[%emt 0:00:09]} d5 {[%emt 0:00:21]} 5. c3 {[%emt 0:00:15]} dxe4 {[%emt 0:13:43]} 6. dxe4 {[%emt 0:00:11] [#] B20: Sicilian: Unusual White 2nd moves.} Qc7 $146 {[%emt 0:05:54]} ({Better is} 6... Qxd1+ $15 7. Kxd1 e5) ({Predecessor:} 6... Qxd1+ 7. Kxd1 Bg4+ 8. f3 O-O-O+ 9. Ke2 Bd7 10. Bh3 e5 11. Nd2 Be7 12. Nc4 Kc7 {1-0 (41) Kireev,A (2351)-Johnson,J (2223) Chess.com INT 2019}) 7. Qe2 {[%emt 0:04:50][%cal Oe4e5]} e5 {[%emt 0:05:24]} 8. Nf3 {[%emt 0:01:07][%cal Bg1f3,Bf3h4,Bh4f5][%mdl 32] The position is equal.} Be7 {[%emt 0:04:31]} 9. O-O {[%emt 0:02:45]} Rb8 {[%emt 0:02:19]} 10. Na3 {[%emt 0:02:22]} O-O {[%emt 0:05:56]} 11. h3 {[%emt 0:00:47]} a6 {[%emt 0:03:25]} 12. Nc4 {[%emt 0:00:48]} Be6 {[%emt 0:02:10]} ({Don't do} 12... b5 {[#]} 13. Ncxe5 $1 Nxe5 14. Nxe5 $14) 13. Nh4 {[%emt 0:12:46]} Ne8 {[%emt 0:06:56]} (13... g6 $11) 14. Nf5 $14 {[%emt 0:01:13]} Bxc4 {[%emt 0:03:13]} 15. Qxc4 {[%emt 0:00:14]} Nd6 {[%emt 0:02:45]} 16. Qe2 {[%emt 0:00:40]} b5 {[%emt 0:06:17]} 17. Qg4 {[%emt 0:02:17][%csl Gf5][%cal Rg4g7]} Nxf5 {[%emt 0:05:56]} 18. exf5 {[%emt 0:00:11]} Kh8 {[%emt 0:05:44]} 19. Re1 {[%emt 0:04:08]} b4 {[%emt 0:06:06]} 20. Be4 $40 {[%emt 0:07:56][%cal Of5f6,Bg2e4,Be4d5,Bd5c4,Bc4a6][%mdl 160] White has strong attack.} f6 {[%emt 0:02:43]} 21. Qh5 {[%emt 0:00:32]} Nd8 {[%emt 0:02:41]} (21... Rfd8 $142) 22. Bd5 {[%emt 0:00:48] aiming for Re4.} Qd7 {[%emt 0:01:32]} 23. Bc4 {[%emt 0:04:38] Strongly threatening Re4. White is more active.} Qe8 {[%emt 0:01:05]} (23... Qc6 $16 24. Be3 bxc3) 24. Qxe8 $18 {[%emt 0:01:15]} Rxe8 {[%emt 0:00:04]} 25. Bxa6 {[%emt 0:00:13]} Bd6 {[%emt 0:02:13]} (25... Nf7 $142 26. cxb4 Rxb4) 26. Rd1 {[%emt 0:01:04][%cal Be1d1,Bd1d6,Bd6b6][%mdl 32]} Rb6 {[%emt 0:00:45]} 27. Bc4 {[%emt 0:01:54] This bishop pair is nice.} e4 {[%emt 0:01:21]} (27... Nb7 $142 28. Be3 bxc3) 28. cxb4 {[%emt 0:04:49]} Rxb4 {[%emt 0:00:23]} 29. Rxd6 {[%emt 0:01:00]} Rxc4 {[%emt 0:00:05]} 30. Be3 {[%emt 0:00:28] Inhibits Rd4.} Nb7 {[%emt 0:06:33]} (30... Nf7 {was worth a try.}) 31. Rb6 {[%emt 0:04:05]} Rb4 {[%emt 0:04:18]} 32. Bxc5 {[%emt 0:00:40]} Rc4 {[%emt 0:00:12]} (32... Rxb6 $142 33. Bxb6 Kg8) 33. Be3 {[%emt 0:06:04]} Na5 {[%emt 0:00:15]} 34. b4 {[%emt 0:02:15][%cal Bb2b4,Bb4b5,Bb5b6][%mdl 32]} Nc6 {[%emt 0:00:27]} 35. b5 {[%emt 0:01:21]} Nb4 {[%emt 0:00:42]} 36. Re6 {[%emt 0:02:23][%cal Re6e8]} Rb8 {[%emt 0:00:56]} 37. Bf4 {[%emt 0:00:14]} Rd8 {[%emt 0:01:07]} 38. b6 {[%emt 0:00:51]} Na6 {[%emt 0:00:36]} 39. Re1 {[%emt 0:02:46]} h6 {[%emt 0:00:29]} 40. R1xe4 {[%emt 0:00:00]} Rd1+ {[%emt 0:00:00]} 41. Kg2 {[%emt 0:01:00]} Rxe4 {[%emt 0:02:39]} 42. Rxe4 {[%emt 0:00:08] KRB-KRN} Rb1 {[%emt 0:00:40]} 43. Be3 {[%emt 0:00:24]} Kh7 {[%emt 0:00:29]} 44. a4 {[%emt 0:00:20]} Ra1 {[%emt 0:00:39]} 45. Re8 {[%emt 0:01:16]} Rxa4 {[%emt 0:00:28]} 46. Ra8 {[%emt 0:00:12]} Ra1 {[%emt 0:00:12] [#]} 47. Rxa6 $1 {[%emt 0:00:16] Weighted Error Value: White=0.06 (flawless) /Black=0.29 (precise)} 1-0

[Event "1st Chessable Sunway Formentera 2022"]
[Site "Formentera Punta Prima"]
[Date "2022.05.06"]
[Round "8.14"]
[White "Neiman, Emmanuel"]
[Black "Tsatsalashvili, Keti"]
[Result "1/2-1/2"]
[ECO "E11"]
[WhiteElo "2248"]
[BlackElo "2331"]
[Annotator "TA"]
[PlyCount "126"]
[EventDate "2022.05.05"]
[EventType "swiss"]
[EventCountry "ESP"]
[SourceTitle "playchess.com"]
[Source "ChessBase"]
[SourceQuality "1"]
[TimeControl "40/5400+30:1800+30"]

{[%evp 15,126,10,4,2,-12,-35,6,-5,-1,-14,-14,-91,-100,-124,-105,-90,-97,-92,-86,-127,-120,-117,-120,-136,-92,-109,-87,-120,0,-105,-96,-106,-106,-112,-106,-168,-144,-174,-163,-174,-146,-162,-180,-205,-166,-189,-125,-143,-146,-145,-145,-153,-155,-159,-134,-143,-72,-70,-97,-145,-155,-145,-154,-144,-126,-117,-115,-129,-137,-126,-93,-91,-103,-138,-14,-14,-14,-14,-14,-14,0,-5,0,0,0,0,0,0,0,0,0,0,0,0,0,0,0,0,0,0,0,0,0,0,0,0,0,0,0,0,0,0,0]} 1. Nf3 {[%emt 0:00:04]} d5 {[%emt 0:00:16]} 2. d4 {[%emt 0:00:21]} e6 {[%emt 0:00:38]} 3. c4 {[%emt 0:01:07]} Nf6 {[%emt 0:00:17]} 4. g3 {[%emt 0:00:21]} Bb4+ {[%emt 0:01:05]} 5. Bd2 {[%emt 0:00:09]} Be7 {[%emt 0:00:04]} 6. Bg2 {[%emt 0:00:31]} c6 {[%emt 0:01:49]} 7. Qc2 {[%emt 0:05:28]} O-O {[%emt 0:01:09]} 8. O-O {[%emt 0:00:07]} b6 {[%emt 0:02:43]} 9. Nc3 {[%emt 0:07:57] E11: Bogo-Indian.} dxc4 {[%emt 0:06:24]} 10. Ne5 {[%emt 0:02:55]} Bb7 {[%emt 0:12:46] [#]} 11. Nxc4 $146 {[%emt 0:13:25]} ({Predecessor:} 11. e3 b5 12. Nxb5 Nd5 13. Nc3 Ba6 14. a3 Qb6 15. Rfc1 Qb3 16. Nd1 Qxc2 17. Rxc2 {1-0 (24) Nguyen,H (2026)-Tran Ngo Thien,P (1908) Da Lat 2013}) 11... Qxd4 {[%emt 0:10:54]} 12. Nb5 {[%emt 0:01:58][%mdl 64] Pin} Qd7 {[%emt 0:00:51]} 13. Ne5 {[%emt 0:01:05]} Qc8 $1 $17 {[%emt 0:00:47]} 14. Rac1 {[%emt 0:00:13][%cal Rg2c6]} a6 {[%emt 0:02:25]} 15. Nc3 {[%emt 0:06:17]} c5 {[%emt 0:01:14]} 16. Ne4 {[%emt 0:04:07]} Nd5 {[%emt 0:17:09]} 17. h4 {[%emt 0:09:45]} ({Avoid the trap} 17. Ng5 $2 Bxg5 18. Bxg5 f6 $19) 17... Qc7 {[%emt 0:04:29]} 18. Nf3 {[%emt 0:02:03][%cal Ob2b4]} h6 {[%emt 0:03:41]} 19. a3 {[%emt 0:03:05]} a5 {[%emt 0:05:15]} 20. Nc3 {[%emt 0:00:29]} Bf6 {[%emt 0:02:19]} 21. Ne4 {[%emt 0:01:15]} Be7 {[%emt 0:03:01]} 22. Nc3 $1 {[%emt 0:00:21]} Nxc3 {[%emt 0:00:40]} 23. Bxc3 {[%emt 0:00:08]} Nd7 {[%emt 0:00:30]} 24. Rfd1 {[%emt 0:01:48][%cal Of3e5]} Rfd8 {[%emt 0:02:55]} 25. e4 {[%emt 0:01:49]} (25. a4 $17 {keeps fighting.}) 25... a4 {[%emt 0:00:42]} 26. Re1 {[%emt 0:01:58]} Bc6 {[%emt 0:02:39]} 27. Qe2 {[%emt 0:00:10]} Bf6 {[%emt 0:01:15]} 28. e5 {[%emt 0:00:07]} Be7 {[%emt 0:00:03]} 29. Qc4 {[%emt 0:00:36]} Nf8 {[%emt 0:02:25]} 30. Qg4 {[%emt 0:00:49]} Rab8 {[%emt 0:02:38]} (30... Qb7 $19 31. Re2 Rd7) 31. Nd2 {[%emt 0:01:57]} Bxg2 {[%emt 0:01:07]} 32. Kxg2 {[%emt 0:00:05]} Qc6+ {[%emt 0:00:24]} 33. Kg1 {[%emt 0:00:14]} Rd3 {[%emt 0:01:54]} 34. Ne4 {[%emt 0:00:34]} Rbd8 {[%emt 0:01:35]} 35. Nd6 {[%emt 0:05:43]} ({Reject} 35. Nf6+ Kh8 $17) 35... Qf3 {[%emt 0:05:02]} (35... Rd5 $142 $1 {White must now prevent ...h5.} 36. Ne4 Ng6) 36. Qxf3 {[%emt 0:00:08]} Rxf3 {[%emt 0:00:04]} 37. Rcd1 {[%emt 0:00:28]} (37. Nb5 $142) 37... Bxd6 {[%emt 0:00:47]} 38. exd6 {[%emt 0:00:07] [#]} Rf5 $1 {[%emt 0:02:06]} 39. Re4 {[%emt 0:02:47]} Rd5 {[%emt 0:00:46]} 40. Rxd5 {[%emt 0:00:00]} exd5 {[%emt 0:00:00]} 41. Rxa4 {[%emt 0:00:29][%mdl 4096] Endgame KRB-KRN} d4 {[%emt 0:04:21]} 42. Bd2 {[%emt 0:00:05]} Ne6 {[%emt 0:01:19]} 43. Ra6 {[%emt 0:00:54]} Rxd6 {[%emt 0:00:40]} 44. Kf1 {[%emt 0:00:46][%cal Od2a5] [#]} d3 {[%emt 0:08:05]} (44... c4 $1 $17 {...Nc5 is the strong threat.} 45. Ba5 Rd5) 45. a4 $1 $11 {[%emt 0:04:01] The position is equal.} Nc7 {[%emt 0:01:16]} 46. Ra7 {[%emt 0:00:05]} Nd5 {[%emt 0:00:07]} 47. a5 {[%emt 0:01:09]} bxa5 {[%emt 0:07:58]} 48. Rxa5 {[%emt 0:00:41]} c4 {[%emt 0:00:09]} 49. Rc5 {[%emt 0:00:39]} Nb6 {[%emt 0:00:07]} 50. Ke1 $1 {[%emt 0:03:43]} Rd5 {[%emt 0:01:04]} 51. Rc6 {[%emt 0:00:25]} Re5+ {[%emt 0:01:11]} 52. Be3 {[%emt 0:06:00]} Nd5 {[%emt 0:00:44]} 53. Rxc4 {[%emt 0:10:08]} Nxe3 {[%emt 0:00:12]} 54. fxe3 {[%emt 0:00:05]} Rxe3+ {[%emt 0:00:01] KR-KR} 55. Kd2 {[%emt 0:00:24]} Rxg3 {[%emt 0:01:27] Strongly threatening ...Rg2+.} 56. b4 $1 {[%emt 0:00:03]} g5 {[%emt 0:00:53]} 57. b5 {[%emt 0:00:29]} Rg2+ {[%emt 0:03:00]} 58. Kxd3 {[%emt 0:00:08] aiming for Kc3.} Rb2 {[%emt 0:01:26]} 59. hxg5 {[%emt 0:04:20]} hxg5 {[%emt 0:04:11]} 60. Rc5 {[%emt 0:00:08]} f6 {[%emt 0:00:47]} 61. Kc3 {[%emt 0:00:09]} Rb1 {[%emt 0:01:02]} 62. Kc2 {[%emt 0:00:04]} Rb4 {[%emt 0:01:19]} 63. Kc3 {[%emt 0:00:11]} Rb1 {[%emt 0:00:04] White happily takes the draw.  Weighted Error Value: White=0.10 (very precise) /Black=0.15 (very precise)} 1/2-1/2

[Event "1st Chessable Sunway Formentera 2022"]
[Site "Formentera Punta Prima"]
[Date "2022.05.06"]
[Round "8.15"]
[White "Garcia Martin, Marta"]
[Black "Dukic, Zachary"]
[Result "1-0"]
[ECO "B12"]
[WhiteElo "2326"]
[BlackElo "2243"]
[Annotator "TA"]
[PlyCount "114"]
[EventDate "2022.05.05"]
[EventType "swiss"]
[EventCountry "ESP"]
[SourceTitle "playchess.com"]
[Source "ChessBase"]
[SourceQuality "1"]
[TimeControl "40/5400+30:1800+30"]

{[%evp 10,114,15,3,15,10,23,14,20,19,17,19,19,17,15,-12,-6,-81,11,9,37,29,34,0,23,10,45,50,49,44,50,0,66,54,53,0,0,0,0,0,5,0,3,0,0,0,0,0,0,0,0,0,13,19,71,0,0,0,0,0,396,395,431,0,0,0,0,0,0,-20,-21,-18,-22,-35,-8,-8,-8,-18,-18,-70,-3,-40,-8,-38,-38,-69,-20,-12,0,-2,0,0,0,-10,0,0,15,16,77,74,76,75,218,85,84,77,145]} 1. e4 {[%emt 0:03:34]} c6 {[%emt 0:00:02]} 2. d4 {[%emt 0:00:25]} d5 {[%emt 0:00:06]} 3. e5 {[%emt 0:00:03]} Bf5 {[%emt 0:00:07]} 4. Nd2 {[%emt 0:01:07]} e6 {[%emt 0:00:06]} 5. Nb3 {[%emt 0:00:09]} Nd7 {[%emt 0:00:05]} 6. Nf3 {[%emt 0:00:25]} c5 {[%emt 0:00:06] B12: Caro-Kann: Advance Variation.} 7. dxc5 {[%emt 0:00:09]} Bxc5 {[%emt 0:00:05]} 8. Nxc5 {[%emt 0:00:11]} Nxc5 {[%emt 0:00:07] The position is equal.} 9. Be3 {[%emt 0:06:17]} Nd7 {[%emt 0:03:56]} 10. Nd4 {[%emt 0:01:25]} Ne7 {[%emt 0:03:08]} 11. f4 {[%emt 0:00:22]} Be4 {[%emt 0:03:38] [#]} 12. Nf3 $146 {[%emt 0:19:12]} ({Predecessor:} 12. Be2 Bxg2 13. Rg1 Be4 14. c3 O-O 15. Bf2 Ng6 16. Qd2 a6 17. Qe3 Kh8 18. h4 Nxh4 {0-1 (42) Frolov,A (2025)-Faizrakhmanov,R (2450) Sochi 2020}) 12... O-O {[%emt 0:13:32]} 13. Be2 {[%emt 0:00:15]} (13. Bd3 $11) 13... b5 {[%emt 0:06:40]} ({Black should try} 13... Nf5 $17 14. Bf2 f6) 14. O-O $11 {[%emt 0:14:18]} b4 {[%emt 0:05:35]} 15. Qd2 {[%emt 0:02:03]} Qb8 {[%emt 0:03:06]} 16. a3 {[%emt 0:13:17]} Rc8 {[%emt 0:09:53]} 17. Rfc1 {[%emt 0:01:02]} (17. Nd4 $5 {[%cal Ra3b4]}) 17... a5 {[%emt 0:11:31]} 18. axb4 {[%emt 0:13:06]} Qxb4 {[%emt 0:12:53]} 19. Qxb4 {[%emt 0:09:00]} axb4 {[%emt 0:00:08]} 20. Bb5 {[%emt 0:13:35]} ({Better is} 20. Rxa8 $14 Rxa8 21. Nd2) 20... Nf8 {[%emt 0:01:52]} (20... Rxa1 $11 21. Rxa1 Nf8) 21. Rxa8 $14 {[%emt 0:00:20]} Rxa8 {[%emt 0:00:08]} 22. Ne1 {[%emt 0:00:41]} (22. Nd2 $14 {deserves consideration.}) 22... Nf5 $11 {[%emt 0:03:55]} 23. Bf2 {[%emt 0:00:24]} Ng6 {[%emt 0:02:23]} 24. g3 {[%emt 0:00:15]} h5 {[%emt 0:04:21][%cal Bh7h5,Bh5h4][%mdl 32]} 25. Be2 {[%emt 0:00:13]} h4 {[%emt 0:00:36]} 26. b3 {[%emt 0:00:49]} f6 {[%emt 0:04:15]} 27. exf6 {[%emt 0:00:22]} gxf6 {[%emt 0:00:08]} 28. Nd3 {[%emt 0:00:05]} hxg3 {[%emt 0:01:06]} 29. hxg3 {[%emt 0:00:04]} Kf7 {[%emt 0:01:24] aiming for ...Rh8.} 30. Nc5 {[%emt 0:00:06]} Nd6 {[%emt 0:02:55]} 31. Be1 {[%emt 0:00:15]} Rg8 {[%emt 0:02:15]} (31... Ne7 $11 {remains equal.}) 32. Bh5 {[%emt 0:02:18]} (32. Ra1 $16 {And now Ra7+ would win.} Bxc2 33. Ra7+ (33. Bxb4 Nxf4 34. Ra7+ Ke8 $11) 33... Ne7 34. Rd7) 32... Rh8 {[%emt 0:00:48]} 33. g4 {[%emt 0:00:38]} f5 {[%emt 0:00:46]} 34. Ra1 {[%emt 0:00:23]} Nb5 {[%emt 0:03:32][%mdl 8192] Against Ra7+} (34... fxg4 $11 {and Black has nothing to worry.} 35. Nxe4 dxe4) 35. Nxe4 $18 {[%emt 0:00:33]} dxe4 {[%emt 0:00:43] [#]} 36. Bxb4 $2 {[%emt 0:00:13]} ({White has to play} 36. Ra5 $1 $18 {[%cal Ra5b5]}) 36... fxg4 $11 {[%emt 0:01:11]} 37. Bxg4 {[%emt 0:00:45]} Nxf4 {[%emt 0:00:45] White must now prevent ...Rg8.} 38. Kf2 {[%emt 0:00:38]} Nd5 {[%emt 0:00:33]} 39. Bc5 {[%emt 0:00:29] Prevents e3+.} Rh2+ {[%emt 0:00:18]} 40. Kg3 {[%emt 0:00:00]} Rxc2 {[%emt 0:00:00]} 41. Rf1+ {[%emt 0:02:31]} Kg6 {[%emt 0:01:14]} 42. b4 {[%emt 0:01:59]} Nbc7 {[%emt 0:07:56]} 43. Kh4 {[%emt 0:07:36]} Nf6 {[%emt 0:06:48]} 44. Bd1 {[%emt 0:01:52]} (44. Rf2 $11 Rxf2 45. Bxf2) 44... Rd2 {[%emt 0:02:37]} (44... Rh2+ $1 $15 45. Kg3 Rd2) 45. Be3 {[%emt 0:09:22]} Rh2+ {[%emt 0:03:01]} 46. Kg3 {[%emt 0:00:04]} Ra2 {[%emt 0:00:13]} 47. Bd4 {[%emt 0:02:58]} Ncd5 {[%emt 0:04:18]} (47... Nfd5 $1 $15) 48. b5 {[%emt 0:01:41]} Ra3+ {[%emt 0:00:28]} 49. Kh4 {[%emt 0:00:31]} Rd3 {[%emt 0:01:17]} 50. Be5 {[%emt 0:00:31][%cal Ob5b6]} Nd7 {[%emt 0:04:25]} 51. Bb2 {[%emt 0:02:11]} Ne3 {[%emt 0:02:35]} 52. Bh5+ {[%emt 0:00:29]} Kh6 {[%emt 0:01:09]} 53. Bc1 {[%emt 0:00:22] Strongly threatening Re1. This bishop pair is nice.} Nb6 {[%emt 0:01:32]} (53... Rc3 $11 {keeps the balance.}) 54. Rf6+ {[%emt 0:03:00]} Kh7 {[%emt 0:00:45]} 55. Rxe6 {[%emt 0:02:00]} Nbd5 {[%emt 0:00:26] [#]} (55... Nbc4 $16 {was called for.}) 56. Bg6+ {[%emt 0:00:48]} ({Not} 56. Rxe4 Rb3 $14) (56. Bb2 $1 $18 {White threatens Bg6+ and mate.} Ng2+ 57. Kg5 Rg3+ 58. Kf5) 56... Kg8 $16 {[%emt 0:00:24]} 57. Kg5 {[%emt 0:01:00] Re8+ is the strong threat.} Nc7 {[%emt 0:01:14] Prevents Re8+.  Weighted Error Value: White=0.25 (precise) /Black=0.30} (57... Nc4 $142) 1-0